[Event "Betsys MČR v online bleskovém šachu 2021"]
[Site "Chess.com"]
[Date "2021.04.17"]
[Round "13"]
[White "Vitana"]
[Black "sachovybukowski"]
[Result "1/2-1/2"]
[WhiteElo "1750"]
[BlackElo "1949"]
[TimeControl "180+1"]
[EndTime "11:12:34 PDT"]
[Termination "Remíza – nedostatek materiálu"]

1. e4 {[%clk 0:03:00.9]} 1... c5 {[%clk 0:02:59.2]} 2. c3 {[%clk 0:03:00.5]}
2... Nf6 {[%clk 0:02:58.2]} 3. e5 {[%clk 0:03:00.1]} 3... Nd5 {[%clk 0:02:58.5]}
4. d4 {[%clk 0:03:00.1]} 4... d6 {[%clk 0:02:58.9]} 5. f4 {[%clk 0:02:59]} 5...
Nc6 {[%clk 0:02:53.5]} 6. Nf3 {[%clk 0:02:58.4]} 6... e6 {[%clk 0:02:51.1]} 7.
Bc4 {[%clk 0:02:57.6]} 7... Nb6 {[%clk 0:02:50.2]} 8. Bb3 {[%clk 0:02:57]} 8...
Be7 {[%clk 0:02:50.2]} 9. O-O {[%clk 0:02:56.1]} 9... g6 {[%clk 0:02:48.9]} 10.
Be3 {[%clk 0:02:54.9]} 10... O-O {[%clk 0:02:43.2]} 11. dxc5 {[%clk 0:02:52.1]}
11... dxc5 {[%clk 0:02:40.8]} 12. Qxd8 {[%clk 0:02:50]} 12... Rxd8 {[%clk
0:02:40]} 13. Nbd2 {[%clk 0:02:45.1]} 13... Bd7 {[%clk 0:02:38.8]} 14. Ne4
{[%clk 0:02:43.6]} 14... c4 {[%clk 0:02:35.2]} 15. Bc2 {[%clk 0:02:39.7]} 15...
Nd5 {[%clk 0:02:34]} 16. Rae1 {[%clk 0:02:29.1]} 16... Nxe3 {[%clk 0:02:33.5]}
17. Rxe3 {[%clk 0:02:28.2]} 17... Be8 {[%clk 0:02:16.1]} 18. Re2 {[%clk
0:02:24.2]} 18... b6 {[%clk 0:02:09.8]} 19. Ba4 {[%clk 0:02:19.8]} 19... Na5
{[%clk 0:02:06.2]} 20. Bxe8 {[%clk 0:02:17.6]} 20... Rxe8 {[%clk 0:02:05.6]} 21.
Rd1 {[%clk 0:02:16.6]} 21... Red8 {[%clk 0:02:05.7]} 22. Red2 {[%clk 0:02:15.9]}
22... Rxd2 {[%clk 0:02:04.8]} 23. Rxd2 {[%clk 0:02:15.4]} 23... Rd8 {[%clk
0:02:03.7]} 24. Nd4 {[%clk 0:02:14.6]} 24... Kf8 {[%clk 0:01:58.3]} 25. Kf2
{[%clk 0:02:13.6]} 25... Ke8 {[%clk 0:01:46.8]} 26. Ke2 {[%clk 0:02:13]} 26...
Bc5 {[%clk 0:01:42.6]} 27. Nb5 {[%clk 0:02:10.7]} 27... Rxd2+ {[%clk 0:01:40.5]}
28. Nxd2 {[%clk 0:02:08.3]} 28... a6 {[%clk 0:01:37.7]} 29. Nc7+ {[%clk
0:02:05.5]} 29... Kd7 {[%clk 0:01:35.1]} 30. Nxa6 {[%clk 0:02:05.8]} 30... Bg1
{[%clk 0:01:34.3]} 31. h3 {[%clk 0:02:01]} 31... b5 {[%clk 0:01:33.9]} 32. Ne4
{[%clk 0:01:56.2]} 32... Kc6 {[%clk 0:01:31.4]} 33. Nb4+ {[%clk 0:01:55.6]}
33... Kd7 {[%clk 0:01:28.8]} 34. Nf6+ {[%clk 0:01:50.1]} 34... Ke7 {[%clk
0:01:27.3]} 35. Nxh7 {[%clk 0:01:50.1]} 35... Bc5 {[%clk 0:01:22.3]} 36. Nf6
{[%clk 0:01:47.4]} 36... Bxb4 {[%clk 0:01:21.6]} 37. cxb4 {[%clk 0:01:46.6]}
37... Nc6 {[%clk 0:01:21.8]} 38. a3 {[%clk 0:01:43.4]} 38... Nd4+ {[%clk
0:01:21.8]} 39. Ke3 {[%clk 0:01:39.1]} 39... Nc2+ {[%clk 0:01:09.5]} 40. Kd2
{[%clk 0:01:34.6]} 40... Nd4 {[%clk 0:01:09.4]} 41. Ne4 {[%clk 0:01:31.3]} 41...
Nb3+ {[%clk 0:01:01.7]} 42. Ke3 {[%clk 0:01:25.9]} 42... Nc1 {[%clk 0:00:58.5]}
43. Nd6 {[%clk 0:01:21.2]} 43... Nd3 {[%clk 0:00:58.2]} 44. Nxb5 {[%clk
0:01:20.4]} 44... Nxb2 {[%clk 0:00:57.6]} 45. Kd2 {[%clk 0:01:10.1]} 45... Na4
{[%clk 0:00:54.6]} 46. Nc3 {[%clk 0:01:08.4]} 46... Nb6 {[%clk 0:00:54.1]} 47.
a4 {[%clk 0:01:07.6]} 47... Nd5 {[%clk 0:00:54.1]} 48. g3 {[%clk 0:01:00.1]}
48... Nxb4 {[%clk 0:00:52.9]} 49. Ne4 {[%clk 0:00:56.3]} 49... Nd5 {[%clk
0:00:49.8]} 50. a5 {[%clk 0:00:53.7]} 50... Kd7 {[%clk 0:00:47.4]} 51. Nd6
{[%clk 0:00:52.4]} 51... f6 {[%clk 0:00:43.6]} 52. Nxc4 {[%clk 0:00:50.7]} 52...
f5 {[%clk 0:00:35.5]} 53. Ne3 {[%clk 0:00:46.8]} 53... Nb4 {[%clk 0:00:33.5]}
54. Ke2 {[%clk 0:00:45.7]} 54... Kc6 {[%clk 0:00:33.1]} 55. g4 {[%clk
0:00:45.1]} 55... Kb5 {[%clk 0:00:32.5]} 56. gxf5 {[%clk 0:00:44.6]} 56... exf5
{[%clk 0:00:30.9]} 57. Kf3 {[%clk 0:00:37.1]} 57... Kxa5 {[%clk 0:00:21.6]} 58.
e6 {[%clk 0:00:36.3]} 58... Nc6 {[%clk 0:00:20.5]} 59. Nd5 {[%clk 0:00:35.2]}
59... Nd4+ {[%clk 0:00:18.3]} 60. Kg3 {[%clk 0:00:32.4]} 60... Nxe6 {[%clk
0:00:18.3]} 61. Ne7 {[%clk 0:00:31.8]} 61... g5 {[%clk 0:00:17.4]} 62. Nxf5
{[%clk 0:00:30.9]} 62... Nxf4 {[%clk 0:00:12.9]} 63. Ne7 {[%clk 0:00:23.5]}
63... Kb5 {[%clk 0:00:09.4]} 64. Nf5 {[%clk 0:00:20]} 64... Kc5 {[%clk
0:00:08.7]} 65. Nh6 {[%clk 0:00:16.7]} 65... Kd5 {[%clk 0:00:08.5]} 66. Nf7
{[%clk 0:00:16.7]} 66... Ne6 {[%clk 0:00:07.4]} 67. Kg4 {[%clk 0:00:15.6]} 67...
Nf4 {[%clk 0:00:02.4]} 68. Kxg5 {[%clk 0:00:15.3]} 68... Nxh3+ {[%clk
0:00:02.2]} 1/2-1/2

[Event "Betsys MČR v online bleskovém šachu 2021"]
[Site "Chess.com"]
[Date "2021.04.17"]
[Round "13"]
[White "Staci_fiknout_Navara_Plat"]
[Black "OlifantCZ"]
[Result "1/2-1/2"]
[WhiteElo "1907"]
[BlackElo "2246"]
[TimeControl "180+1"]
[EndTime "11:12:43 PDT"]
[Termination "Remíza opakováním pozice"]

1. c4 {[%clk 0:03:00.9]} 1... Nf6 {[%clk 0:02:59.3]} 2. Nc3 {[%clk 0:03:00.7]}
2... g6 {[%clk 0:02:59.9]} 3. g3 {[%clk 0:03:00.6]} 3... Bg7 {[%clk 0:02:59.7]}
4. Bg2 {[%clk 0:03:01.2]} 4... O-O {[%clk 0:03:00.3]} 5. d4 {[%clk 0:03:01.7]}
5... d6 {[%clk 0:03:00.6]} 6. Bg5 {[%clk 0:03:02.3]} 6... h6 {[%clk 0:03:00]} 7.
Bxf6 {[%clk 0:03:02.1]} 7... Bxf6 {[%clk 0:03:00]} 8. e3 {[%clk 0:03:03]} 8...
c6 {[%clk 0:02:45.6]} 9. Nge2 {[%clk 0:03:03]} 9... Nd7 {[%clk 0:02:45.2]} 10.
O-O {[%clk 0:03:02.5]} 10... e5 {[%clk 0:02:43]} 11. Rc1 {[%clk 0:03:02.4]}
11... Re8 {[%clk 0:02:40.1]} 12. Qd2 {[%clk 0:02:59.9]} 12... Kh7 {[%clk
0:02:38.5]} 13. b3 {[%clk 0:02:47.7]} 13... Qe7 {[%clk 0:02:36.1]} 14. dxe5
{[%clk 0:02:34.5]} 14... dxe5 {[%clk 0:02:30.8]} 15. Rfd1 {[%clk 0:02:30.5]}
15... Nc5 {[%clk 0:02:21.7]} 16. Qd6 {[%clk 0:02:29.1]} 16... Be6 {[%clk
0:02:01.9]} 17. Qxe7 {[%clk 0:02:23.8]} 17... Bxe7 {[%clk 0:02:00.5]} 18. Rc2
{[%clk 0:02:15.2]} 18... Red8 {[%clk 0:01:59.3]} 19. Rcd2 {[%clk 0:02:15.2]}
19... f5 {[%clk 0:01:58.6]} 20. h4 {[%clk 0:02:13.8]} 20... Kg7 {[%clk
0:01:56.7]} 21. Kf1 {[%clk 0:02:13.7]} 21... Rxd2 {[%clk 0:01:53.3]} 22. Rxd2
{[%clk 0:02:13.7]} 22... Rd8 {[%clk 0:01:54]} 23. Rxd8 {[%clk 0:02:11]} 23...
Bxd8 {[%clk 0:01:54.1]} 24. Nc1 {[%clk 0:02:08.3]} 24... e4 {[%clk 0:01:50.8]}
25. N3e2 {[%clk 0:02:03.4]} 25... Bf6 {[%clk 0:01:49.5]} 26. Nd4 {[%clk
0:01:58.7]} 26... Bf7 {[%clk 0:01:49.5]} 27. Ke2 {[%clk 0:01:48.3]} 27... a6
{[%clk 0:01:48]} 28. Kd2 {[%clk 0:01:44.5]} 28... Ne6 {[%clk 0:01:44.8]} 29.
Nxe6+ {[%clk 0:01:43.3]} 29... Bxe6 {[%clk 0:01:44.5]} 30. Bf1 {[%clk
0:01:43.9]} 30... c5 {[%clk 0:01:43.4]} 31. Ne2 {[%clk 0:01:42.1]} 31... Kf7
{[%clk 0:01:39.8]} 32. Nc3 {[%clk 0:01:42.2]} 32... Ke7 {[%clk 0:01:39.6]} 33.
Be2 {[%clk 0:01:42.1]} 33... Kd6 {[%clk 0:01:35]} 34. Na4 {[%clk 0:01:42]} 34...
Bd7 {[%clk 0:01:34.2]} 35. Nc3 {[%clk 0:01:41.6]} 35... Bc6 {[%clk 0:01:32.7]}
36. Kc2 {[%clk 0:01:38.5]} 36... g5 {[%clk 0:01:32.6]} 37. hxg5 {[%clk
0:01:37.8]} 37... hxg5 {[%clk 0:01:31.4]} 38. Bf1 {[%clk 0:01:30.7]} 38... Ke5
{[%clk 0:01:26.8]} 39. Kd2 {[%clk 0:01:11.4]} 39... f4 {[%clk 0:01:25.3]} 40.
gxf4+ {[%clk 0:01:11.6]} 40... gxf4 {[%clk 0:01:25]} 41. Bh3 {[%clk 0:01:10.3]}
41... Bh4 {[%clk 0:01:20.8]} 42. Nd1 {[%clk 0:00:59.8]} 42... b5 {[%clk
0:00:59.1]} 43. Bc8 {[%clk 0:00:49.3]} 43... a5 {[%clk 0:00:58.8]} 44. Ba6
{[%clk 0:00:40.5]} 44... b4 {[%clk 0:00:52.3]} 45. Bc8 {[%clk 0:00:40.1]} 45...
a4 {[%clk 0:00:52]} 46. Bh3 {[%clk 0:00:30.8]} 46... a3 {[%clk 0:00:50.3]} 47.
Bc8 {[%clk 0:00:29.6]} 47... Be8 {[%clk 0:00:50.1]} 48. Bg4 {[%clk 0:00:24.3]}
48... Bg6 {[%clk 0:00:49.1]} 49. Ke2 {[%clk 0:00:21.3]} 49... Bf7 {[%clk
0:00:43.4]} 50. Bd7 {[%clk 0:00:18.1]} 50... Bh5+ {[%clk 0:00:42.3]} 51. Kd2
{[%clk 0:00:16.4]} 51... Bf3 {[%clk 0:00:35.2]} 52. Bh3 {[%clk 0:00:15.2]} 52...
Bxd1 {[%clk 0:00:27.2]} 53. Kxd1 {[%clk 0:00:14.9]} 53... Bxf2 {[%clk
0:00:27.1]} 54. exf4+ {[%clk 0:00:14.3]} 54... Kxf4 {[%clk 0:00:26.6]} 55. Ke2
{[%clk 0:00:14.2]} 55... Bh4 {[%clk 0:00:25]} 56. Bg2 {[%clk 0:00:12.2]} 56...
Ke5 {[%clk 0:00:24.7]} 57. Kd2 {[%clk 0:00:06.9]} 57... Kd4 {[%clk 0:00:24.7]}
58. Bh3 {[%clk 0:00:06.4]} 58... Bg5+ {[%clk 0:00:24.1]} 59. Kc2 {[%clk
0:00:06]} 59... Ke3 {[%clk 0:00:24.1]} 60. Bg4 {[%clk 0:00:05.8]} 60... Kf2
{[%clk 0:00:20.5]} 61. Kd1 {[%clk 0:00:03.7]} 61... Kg3 {[%clk 0:00:18.4]} 62.
Bh5 {[%clk 0:00:03.9]} 62... Kf4 {[%clk 0:00:18.1]} 63. Ke2 {[%clk 0:00:03.5]}
63... Bh4 {[%clk 0:00:16.5]} 64. Be8 {[%clk 0:00:02.7]} 64... Bf6 {[%clk
0:00:16.4]} 65. Bh5 {[%clk 0:00:03]} 65... Bc3 {[%clk 0:00:16.3]} 66. Be8 {[%clk
0:00:03.2]} 66... Ke5 {[%clk 0:00:16.3]} 67. Bh5 {[%clk 0:00:03.7]} 67... Kd4
{[%clk 0:00:16.7]} 68. Bg6 {[%clk 0:00:03.3]} 68... Bb2 {[%clk 0:00:16.6]} 69.
Kd2 {[%clk 0:00:03.2]} 69... Bc3+ {[%clk 0:00:16.3]} 70. Ke2 {[%clk 0:00:03]}
70... Ba1 {[%clk 0:00:13.4]} 71. Kd2 {[%clk 0:00:03.1]} 71... Bc3+ {[%clk
0:00:10.5]} 72. Ke2 {[%clk 0:00:03.1]} 1/2-1/2

[Event "Betsys MČR v online bleskovém šachu 2021"]
[Site "Chess.com"]
[Date "2021.04.17"]
[Round "13"]
[White "Petroniuss"]
[Black "iDarkTraveler"]
[Result "1-0"]
[WhiteElo "2203"]
[BlackElo "1943"]
[TimeControl "180+1"]
[EndTime "11:12:51 PDT"]
[Termination "Uživatel Petroniuss zvítězil po vzdání soupeře"]

1. e4 {[%clk 0:03:00.9]} 1... e5 {[%clk 0:02:59.2]} 2. Nf3 {[%clk 0:03:00.2]}
2... Nc6 {[%clk 0:02:58.4]} 3. d4 {[%clk 0:02:59.8]} 3... exd4 {[%clk 0:02:58]}
4. c3 {[%clk 0:02:59]} 4... dxc3 {[%clk 0:02:53.4]} 5. Nxc3 {[%clk 0:02:58.7]}
5... d6 {[%clk 0:02:48.4]} 6. Bc4 {[%clk 0:02:56.1]} 6... Be7 {[%clk 0:02:40.7]}
7. Qb3 {[%clk 0:02:54.8]} 7... Na5 {[%clk 0:01:57.8]} 8. Bxf7+ {[%clk
0:02:51.5]} 8... Kf8 {[%clk 0:01:57.8]} 9. Qa4 {[%clk 0:02:49.5]} 9... Kxf7
{[%clk 0:01:43.3]} 10. Qxa5 {[%clk 0:02:48.9]} 10... h6 {[%clk 0:01:40.1]} 11.
Qa4 {[%clk 0:02:48.1]} 11... Bd7 {[%clk 0:01:36.1]} 12. Qb3+ {[%clk 0:02:35.5]}
12... Kf8 {[%clk 0:01:28.6]} 13. Qxb7 {[%clk 0:02:29.2]} 13... Nf6 {[%clk
0:01:28.3]} 14. O-O {[%clk 0:02:22.2]} 14... g6 {[%clk 0:01:19.5]} 15. e5 {[%clk
0:02:18.8]} 15... dxe5 {[%clk 0:01:06.6]} 16. Nxe5 {[%clk 0:02:18.6]} 16... Kg7
{[%clk 0:01:05.2]} 17. Rd1 {[%clk 0:02:02.2]} 17... Bd6 {[%clk 0:01:05.2]} 18.
Bf4 {[%clk 0:01:52.2]} 18... Rb8 {[%clk 0:00:49.3]} 19. Qxa7 {[%clk 0:01:41.6]}
19... Rxb2 {[%clk 0:00:48.1]} 20. Nxd7 {[%clk 0:01:34.4]} 20... Bxf4 {[%clk
0:00:41]} 21. Nxf6 {[%clk 0:01:28.9]} 21... Qxf6 {[%clk 0:00:36]} 22. Nd5 {[%clk
0:01:10]} 22... Qe5 {[%clk 0:00:16]} 23. Nxf4 {[%clk 0:01:06.5]} 23... Qxf4
{[%clk 0:00:16.3]} 24. Qd4+ {[%clk 0:01:04.9]} 24... Qxd4 {[%clk 0:00:16.1]} 25.
Rxd4 {[%clk 0:01:05.7]} 25... Rf8 {[%clk 0:00:15.9]} 26. f3 {[%clk 0:00:57.9]}
26... Ra8 {[%clk 0:00:15.7]} 27. a4 {[%clk 0:00:53.1]} 27... Kf6 {[%clk
0:00:14.5]} 28. Rc1 {[%clk 0:00:45.6]} 28... Ra2 {[%clk 0:00:11]} 29. Rxc7
{[%clk 0:00:38.9]} 29... R8xa4 {[%clk 0:00:10.8]} 30. Rxa4 {[%clk 0:00:34.9]}
30... Rxa4 {[%clk 0:00:11.7]} 31. Rc2 {[%clk 0:00:35.2]} 31... Ra3 {[%clk
0:00:11]} 32. Kf2 {[%clk 0:00:35.5]} 32... h5 {[%clk 0:00:10.7]} 33. Rc6+ {[%clk
0:00:33.9]} 33... Kg5 {[%clk 0:00:10.9]} 34. Rc2 {[%clk 0:00:31.8]} 34... Ra1
{[%clk 0:00:10.9]} 35. g3 {[%clk 0:00:31.5]} 35... Rh1 {[%clk 0:00:08.8]} 36.
h4+ {[%clk 0:00:31.5]} 36... Kf6 {[%clk 0:00:07.6]} 37. Ke3 {[%clk 0:00:31.8]}
37... Rg1 {[%clk 0:00:07.6]} 38. Kf4 {[%clk 0:00:31.8]} 38... Rd1 {[%clk
0:00:07.1]} 39. Rc6+ {[%clk 0:00:32.3]} 39... Kg7 {[%clk 0:00:06.8]} 40. Rc7+
{[%clk 0:00:32.8]} 40... Kf6 {[%clk 0:00:06.8]} 41. Rc6+ {[%clk 0:00:30.1]}
41... Kg7 {[%clk 0:00:06.7]} 42. Rc4 {[%clk 0:00:30.7]} 42... Ra1 {[%clk
0:00:06.5]} 43. Rc5 {[%clk 0:00:26.5]} 43... Ra4+ {[%clk 0:00:05.8]} 44. Kg5
{[%clk 0:00:26.1]} 44... Ra3 {[%clk 0:00:06.7]} 45. Rc7+ {[%clk 0:00:24.5]}
45... Kf8 {[%clk 0:00:06.1]} 46. Kxg6 {[%clk 0:00:14.9]} 46... Rxf3 {[%clk
0:00:05.5]} 47. Kxh5 {[%clk 0:00:14.1]} 47... Rxg3 {[%clk 0:00:05.8]} 48. Kh6
{[%clk 0:00:13.6]} 48... Rg1 {[%clk 0:00:04.5]} 49. h5 {[%clk 0:00:13.8]} 49...
Rg3 {[%clk 0:00:04.6]} 50. Rc5 {[%clk 0:00:13.1]} 50... Kf7 {[%clk 0:00:03.8]}
51. Rf5+ {[%clk 0:00:12.9]} 51... Ke6 {[%clk 0:00:03.6]} 52. Rf2 {[%clk
0:00:12.7]} 52... Rg4 {[%clk 0:00:03.5]} 53. Kh7 {[%clk 0:00:12.6]} 53... Rg3
{[%clk 0:00:03.9]} 54. h6 {[%clk 0:00:13]} 54... Rg4 {[%clk 0:00:04.2]} 55. Kh8
{[%clk 0:00:13.1]} 55... Rg5 {[%clk 0:00:04.5]} 56. Re2+ {[%clk 0:00:11.4]}
56... Kf7 {[%clk 0:00:04]} 57. Ra2 {[%clk 0:00:10.5]} 57... Rg8+ {[%clk
0:00:04.1]} 58. Kh7 {[%clk 0:00:09.9]} 58... Rg3 {[%clk 0:00:05]} 59. Ra7+
{[%clk 0:00:09.1]} 59... Kf6 {[%clk 0:00:05.5]} 60. Ra6+ {[%clk 0:00:08.3]}
60... Kf7 {[%clk 0:00:05.9]} 61. Ra7+ {[%clk 0:00:08.5]} 61... Kf6 {[%clk
0:00:06.4]} 62. Kh8 {[%clk 0:00:08.2]} 62... Rg5 {[%clk 0:00:04]} 63. h7 {[%clk
0:00:08.3]} 63... Rg4 {[%clk 0:00:04.2]} 64. Ra8 {[%clk 0:00:08.3]} 64... Kf7
{[%clk 0:00:04.3]} 65. Ra2 {[%clk 0:00:07.3]} 65... Kf6 {[%clk 0:00:04.4]} 66.
Rf2+ {[%clk 0:00:07.3]} 66... Ke7 {[%clk 0:00:04.7]} 67. Rf5 {[%clk 0:00:05.9]}
67... Ke6 {[%clk 0:00:04.6]} 68. Rf8 {[%clk 0:00:05.7]} 68... Ke7 {[%clk
0:00:04.9]} 69. Rg8 {[%clk 0:00:06]} 69... Rh4 {[%clk 0:00:04.9]} 70. Rg7+
{[%clk 0:00:06.2]} 70... Kf6 {[%clk 0:00:04.5]} 71. Kg8 {[%clk 0:00:06.1]} 71...
Re4 {[%clk 0:00:04.4]} 72. h8=Q {[%clk 0:00:05.1]} 72... Re8+ {[%clk 0:00:04.6]}
73. Kh7 {[%clk 0:00:05.4]} 73... Rxh8+ {[%clk 0:00:04.6]} 74. Kxh8 {[%clk
0:00:06.3]} 1-0

[Event "Betsys MČR v online bleskovém šachu 2021"]
[Site "Chess.com"]
[Date "2021.04.17"]
[Round "13"]
[White "petr812"]
[Black "sachmaty8"]
[Result "0-1"]
[WhiteElo "2096"]
[BlackElo "1892"]
[TimeControl "180+1"]
[EndTime "11:12:51 PDT"]
[Termination "Uživatel sachmaty8 zvítězil po vzdání soupeře"]

1. e4 {[%clk 0:03:00.9]} 1... e6 {[%clk 0:02:59.5]} 2. Nf3 {[%clk 0:02:59.9]}
2... d5 {[%clk 0:02:59.2]} 3. e5 {[%clk 0:02:58.2]} 3... c5 {[%clk 0:02:58.7]}
4. b4 {[%clk 0:02:57.9]} 4... c4 {[%clk 0:02:58.7]} 5. d4 {[%clk 0:02:57.7]}
5... Bxb4+ {[%clk 0:02:54]} 6. c3 {[%clk 0:02:57.4]} 6... Be7 {[%clk 0:02:50.7]}
7. Be2 {[%clk 0:02:57.1]} 7... Nc6 {[%clk 0:02:50.1]} 8. O-O {[%clk 0:02:56.7]}
8... f6 {[%clk 0:02:46.1]} 9. Bf4 {[%clk 0:02:53.7]} 9... Bd7 {[%clk 0:02:24.8]}
10. Nbd2 {[%clk 0:02:46.6]} 10... Nh6 {[%clk 0:02:14.1]} 11. exf6 {[%clk
0:02:41.4]} 11... Bxf6 {[%clk 0:02:11.9]} 12. Ne5 {[%clk 0:02:40.7]} 12... Nf7
{[%clk 0:01:40.4]} 13. Nxf7 {[%clk 0:02:36]} 13... Kxf7 {[%clk 0:01:38.8]} 14.
Nf3 {[%clk 0:02:36.3]} 14... g6 {[%clk 0:01:25]} 15. Ne5+ {[%clk 0:02:32.7]}
15... Nxe5 {[%clk 0:01:23.5]} 16. dxe5 {[%clk 0:02:29.2]} 16... Bg5 {[%clk
0:01:22.9]} 17. Qd2 {[%clk 0:02:27.8]} 17... Bxf4 {[%clk 0:01:15.3]} 18. Qxf4+
{[%clk 0:02:27]} 18... Kg7 {[%clk 0:01:15.9]} 19. Qd4 {[%clk 0:02:23.9]} 19...
Rf8 {[%clk 0:01:11.6]} 20. Rad1 {[%clk 0:02:22.2]} 20... Qg5 {[%clk 0:01:10]}
21. g3 {[%clk 0:02:09.6]} 21... h5 {[%clk 0:01:04]} 22. f4 {[%clk 0:02:07]}
22... Qf5 {[%clk 0:01:01.6]} 23. Bxc4 {[%clk 0:02:03]} 23... dxc4 {[%clk
0:00:28.5]} 24. Qxd7+ {[%clk 0:02:00]} 24... Rf7 {[%clk 0:00:29]} 25. Qd4 {[%clk
0:01:57.1]} 25... Rh8 {[%clk 0:00:26.5]} 26. Qxc4 {[%clk 0:01:52.1]} 26... h4
{[%clk 0:00:26.8]} 27. Qd3 {[%clk 0:01:50.3]} 27... Qg4 {[%clk 0:00:15.4]} 28.
Qf3 {[%clk 0:01:46.3]} 28... Qf5 {[%clk 0:00:11.8]} 29. g4 {[%clk 0:01:45.2]}
29... Qc2 {[%clk 0:00:10.8]} 30. Rf2 {[%clk 0:01:43.1]} 30... Qa4 {[%clk
0:00:10.1]} 31. h3 {[%clk 0:01:38.9]} 31... Rc8 {[%clk 0:00:06.4]} 32. Rd4
{[%clk 0:01:33.8]} 32... Qa6 {[%clk 0:00:04.7]} 33. Kg2 {[%clk 0:01:32]} 33...
Qb6 {[%clk 0:00:04.8]} 34. Rfd2 {[%clk 0:01:25.5]} 34... Qa5 {[%clk 0:00:03.7]}
35. R4d3 {[%clk 0:01:22.2]} 35... Rcc7 {[%clk 0:00:04]} 36. Qe3 {[%clk
0:01:11.9]} 36... Qa4 {[%clk 0:00:03.9]} 37. Rd4 {[%clk 0:01:03.9]} 37... Qc6+
{[%clk 0:00:04]} 38. Kh2 {[%clk 0:00:59.3]} 38... Qxc3 {[%clk 0:00:03.9]} 39.
Qxc3 {[%clk 0:00:58.6]} 39... Rxc3 {[%clk 0:00:04.8]} 40. Rd6 {[%clk 0:00:57.3]}
40... Rxf4 {[%clk 0:00:03]} 41. Rxe6 {[%clk 0:00:55.1]} 41... Rff3 {[%clk
0:00:02.9]} 42. Rd7+ {[%clk 0:00:52.4]} 42... Kh6 {[%clk 0:00:03]} 43. Rdd6
{[%clk 0:00:46.3]} 43... Rxh3+ {[%clk 0:00:02.9]} 44. Kg2 {[%clk 0:00:44.3]}
44... Rcg3+ {[%clk 0:00:03.3]} 45. Kf2 {[%clk 0:00:43.9]} 45... Rh2+ {[%clk
0:00:03.4]} 46. Kf1 {[%clk 0:00:41.9]} 46... Rxg4 {[%clk 0:00:04.3]} 47. Rf6
{[%clk 0:00:38.6]} 47... Rxa2 {[%clk 0:00:04]} 48. e6 {[%clk 0:00:38]} 48...
Ra1+ {[%clk 0:00:03.9]} 49. Ke2 {[%clk 0:00:35.8]} 49... Ra2+ {[%clk 0:00:03.4]}
50. Kd3 {[%clk 0:00:34.3]} 50... Rg3+ {[%clk 0:00:03.6]} 51. Kc4 {[%clk
0:00:29.6]} 51... Re2 {[%clk 0:00:03.7]} 52. Rd7 {[%clk 0:00:26.5]} 52... Rge3
{[%clk 0:00:03.7]} 53. Rxb7 {[%clk 0:00:24.5]} 53... Rxe6 {[%clk 0:00:03.1]} 54.
Rff7 {[%clk 0:00:22.8]} 54... Kg5 {[%clk 0:00:01.8]} 55. Rxa7 {[%clk 0:00:20.8]}
55... R2e5 {[%clk 0:00:02.2]} 56. Rh7 {[%clk 0:00:19.4]} 56... Rf5 {[%clk
0:00:03.1]} 57. Kd3 {[%clk 0:00:18.6]} 57... Kg4 {[%clk 0:00:03.2]} 58. Ra4+
{[%clk 0:00:17.3]} 58... Rf4 {[%clk 0:00:03.6]} 59. Rxh4+ {[%clk 0:00:16.6]}
59... Kxh4 {[%clk 0:00:03.7]} 60. Rxf4+ {[%clk 0:00:16.9]} 60... Kg5 {[%clk
0:00:04.4]} 61. Rf1 {[%clk 0:00:16.6]} 61... Rd6+ {[%clk 0:00:04.7]} 62. Ke2
{[%clk 0:00:16.2]} 62... Re6+ {[%clk 0:00:05]} 63. Kf2 {[%clk 0:00:15.2]} 63...
Rf6+ {[%clk 0:00:05]} 64. Kg2 {[%clk 0:00:15.2]} 64... Rxf1 {[%clk 0:00:05.5]}
65. Kxf1 {[%clk 0:00:14.1]} 65... Kg4 {[%clk 0:00:06.4]} 66. Kg2 {[%clk
0:00:13.7]} 66... g5 {[%clk 0:00:05.1]} 67. Kh1 {[%clk 0:00:13.1]} 67... Kf3
{[%clk 0:00:05.2]} 68. Kg1 {[%clk 0:00:09.9]} 68... g4 {[%clk 0:00:05.1]} 69.
Kh1 {[%clk 0:00:08.5]} 69... Kf2 {[%clk 0:00:03.9]} 70. Kh2 {[%clk 0:00:07]}
70... g3+ {[%clk 0:00:04.3]} 0-1